bitfinex-derivatives/quotes_BTCF0:USTF0_20250704
["timestamp","ask_amount","ask_price","bid_price","bid_amount"]
[1751605289232,1.57690098,109050.0,109040.0,1.35787146]
[1751605290835,1.57690098,109050.0,109040.0,0.99707146]
[1751605291034,1.57690098,109050.0,109040.0,1.35787146]
[1751605291523,1.57690098,109050.0,109040.0,0.99707146]
[1751605291724,1.57686098,109050.0,109040.0,1.35787146]
[1751605293838,1.57686098,109050.0,109040.0,0.99707146]
[1751605294044,1.57686098,109050.0,109040.0,1.35787146]
[1751605295232,1.3270028,109050.0,109040.0,1.35787146]
[1751605295434,1.57686098,109050.0,109040.0,1.35787146]
[1751605296341,1.39348258,109050.0,109040.0,1.35787146]
[1751605297438,1.57682088,109050.0,109040.0,1.35787146]
[1751605297641,1.57682088,109050.0,109040.0,0.8581551]
[1751605297936,1.55395648,109050.0,109040.0,1.35787146]
[1751605298139,1.57682916,109050.0,109040.0,1.35787146]
[1751605298940,1.39349086,109050.0,109040.0,1.35787146]
[1751605301142,1.57682926,109050.0,109040.0,1.35787146]
[1751605303240,1.39349086,109050.0,109040.0,1.35787146]
[1751605304042,1.39349086,109050.0,109040.0,0.8581551]
[1751605304243,1.39349086,109050.0,109040.0,1.35787146]
[1751605304545,1.57682926,109050.0,109040.0,1.35787146]
[1751605305347,1.39349086,109050.0,109040.0,1.35787146]
[1751605305844,1.14363268,109050.0,109040.0,1.35787146]
[1751605306144,1.32697108,109050.0,109040.0,1.35787146]
[1751605306643,1.32697108,109050.0,109040.0,0.8581551]
[1751605307144,1.57682926,109050.0,109040.0,1.35787146]
[1751605310044,1.57682926,109050.0,109040.0,1.10801328]
[1751605313746,1.57682926,109050.0,109040.0,0.8581551]
[1751605313935,2.18748744,109050.0,109030.0,0.0923597]
[1751605314140,0.78097156,109040.0,109030.0,0.62455249]
[1751605314446,1.16384424,109040.0,109030.0,0.92025287]
[1751605314845,0.91398606,109040.0,109030.0,0.92025287]
[1751605315039,0.91398606,109040.0,109030.0,0.92325287]
[1751605315245,0.91398606,109040.0,109030.0,0.92425287]
[1751605315645,0.89111338,109040.0,109030.0,0.92425287]
[1751605316147,0.89211338,109040.0,109030.0,0.92425287]
[1751605316447,0.96399553,109040.0,109030.0,0.92425287]
[1751605316647,0.96499553,109040.0,109030.0,0.92225287]
[1751605320655,0.96499553,109040.0,109030.0,0.90459785]
[1751605322753,0.98777026,109040.0,109030.0,0.90459785]
[1751605328756,0.9877631,109040.0,109030.0,0.90459785]
[1751605330460,1.59842128,109040.0,109030.0,0.85875565]
[1751605330661,1.59842128,109040.0,109030.0,0.60889747]
[1751605331056,1.3485631,109040.0,109030.0,0.85875565]
[1751605332162,1.32579553,109040.0,109030.0,0.85875565]
[1751605332365,1.34856138,109040.0,109030.0,0.85875565]
[1751605333054,1.32579553,109040.0,109030.0,0.85875565]
[1751605335560,1.32579553,109040.0,109030.0,0.60889747]
[1751605335761,1.32579553,109040.0,109030.0,0.85875565]
[1751605337564,1.57565371,109040.0,109030.0,0.60889747]
[1751605337765,1.57565371,109040.0,109030.0,0.85875565]
[1751605340866,1.07593735,109040.0,109030.0,0.85875565]
[1751605341059,1.32579553,109040.0,109030.0,0.85875565]
[1751605343168,1.34856892,109040.0,109030.0,0.85875565]
[1751605346874,1.34856892,109040.0,109030.0,0.60889747]
[1751605347768,1.5984271,109040.0,109030.0,0.60889747]
[1751605347968,1.09871074,109040.0,109030.0,0.60889747]
[1751605348175,1.5984271,109040.0,109030.0,0.60889747]
[1751605350278,1.5984271,109040.0,109030.0,0.485372]
[1751605350474,1.7359515,109040.0,109030.0,0.16229867]
[1751605350673,1.7817939,109040.0,109030.0,0.16229867]
[1751605355575,1.7817939,109040.0,109030.0,0.46229867]
[1751605358480,1.4209939,109040.0,109030.0,0.46229867]
[1751605358680,1.7817939,109040.0,109030.0,0.46229867]
[1751605360877,1.7817939,109040.0,109030.0,0.3]
[1751605361982,0.183372,109030.0,109020.0,0.76076998]
[1751605362182,2.10500357,109030.0,109020.0,0.89076998]
[1751605362682,2.10500357,109030.0,109020.0,0.79907738]
[1751605363080,2.10500357,109030.0,109020.0,0.5492192]
[1751605363582,2.10600357,109030.0,109020.0,0.5492192]
[1751605363785,2.11524437,109030.0,109020.0,0.5492192]
[1751605364474,2.11624437,109030.0,109020.0,0.5512192]
[1751605367483,1.75544437,109030.0,109020.0,0.5512192]
[1751605367684,2.11624437,109030.0,109020.0,0.5512192]
[1751605374189,2.11624437,109030.0,109020.0,0.322]
[1751605374389,2.11624437,109030.0,109020.0,0.5053888]
[1751605374583,2.36610255,109030.0,109020.0,0.002]
[1751605374782,2.11624437,109030.0,109020.0,0.002]
[1751605375786,2.34840437,109030.0,109020.0,0.1853888]
[1751605378089,2.59826255,109030.0,109020.0,0.1853888]
[1751605378490,2.34840437,109030.0,109020.0,0.4853888]
[1751605380488,2.34840437,109030.0,109020.0,0.302]
[1751605381087,1.28364437,109030.0,109020.0,0.4853888]
[1751605381288,2.34840437,109030.0,109020.0,0.4853888]
[1751605385694,2.34840437,109030.0,109020.0,0.302]
[1751605386596,1.98760437,109030.0,109020.0,0.302]
[1751605386795,2.34840437,109030.0,109020.0,0.302]
[1751605388995,2.34840437,109030.0,109020.0,0.4853888]
[1751605390695,1.28364437,109030.0,109020.0,0.4853888]
[1751605390896,2.34872437,109030.0,109020.0,0.4853888]
[1751605391286,2.34872437,109030.0,109020.0,0.302]
[1751605392699,2.34872437,109030.0,109020.0,0.4853888]
[1751605393001,2.34872437,109030.0,109020.0,0.302]
[1751605395704,2.09886619,109030.0,109020.0,0.4853888]
[1751605395890,2.09946619,109030.0,109020.0,0.4853888]
[1751605396093,2.34932437,109030.0,109020.0,0.4853888]
[1751605396302,1.28364437,109030.0,109020.0,0.4853888]
[1751605396603,2.34932437,109030.0,109020.0,0.4853888]
[1751605397503,2.59918255,109030.0,109020.0,0.4853888]
[1751605398205,2.34932437,109030.0,109020.0,0.4853888]
[1751605398404,2.09946619,109030.0,109020.0,0.4853888]
[1751605398604,2.34932437,109030.0,109020.0,0.4853888]
[1751605400104,1.28364437,109030.0,109020.0,0.4853888]
[1751605400293,1.28364437,109030.0,109020.0,0.73524698]
[1751605400494,0.20814539,109030.0,109020.0,0.68510516]
[1751605400701,0.07188215,109040.0,109030.0,0.183372]
[1751605401001,0.31,109040.0,109030.0,1.17618983]
[1751605401206,0.4933551,109040.0,109030.0,0.92633165]
[1751605401505,0.4933551,109040.0,109030.0,1.23115539]
[1751605401706,0.31,109040.0,109030.0,1.23115539]
[1751605402703,0.38479631,109040.0,109030.0,1.23115539]
[1751605403404,0.38679631,109040.0,109030.0,1.23315539]
[1751605404804,0.38679631,109040.0,109030.0,1.48301357]
[1751605405205,0.38679631,109040.0,109030.0,1.23315539]
[1751605405401,0.57015141,109040.0,109030.0,1.23315539]
[1751605405602,0.57015141,109040.0,109030.0,2.06787539]
[1751605405802,0.82000959,109040.0,109030.0,2.06787539]
[1751605406500,0.57015141,109040.0,109030.0,2.06787539]
[1751605408213,0.57015141,109040.0,109030.0,2.01290983]
[1751605416015,0.38679631,109040.0,109030.0,2.26276801]
[1751605416211,0.38679631,109040.0,109030.0,2.60276801]
[1751605416714,0.38679631,109040.0,109030.0,2.65773357]
[1751605417111,0.1833527,109050.0,109040.0,0.1833551]
[1751605417316,0.2733527,109050.0,109040.0,1.76837146]
[1751605417618,0.1833527,109050.0,109040.0,1.80127146]
[1751605418415,0.2182527,109050.0,109040.0,1.80127146]
[1751605418616,0.2212527,109050.0,109040.0,1.80227146]
[1751605420827,0.0379,109050.0,109040.0,1.80227146]
[1751605421120,0.005,109050.0,109040.0,1.80227146]
[1751605422226,0.0313,109060.0,109050.0,0.1833383]
[1751605422429,0.5461001,109080.0,109070.0,0.1833047]
[1751605422628,0.5461001,109080.0,109070.0,0.72316288]
[1751605422629,0.9832668,109080.0,109070.0,0.72316288]
[1751605422927,0.7999667,109080.0,109070.0,0.72316288]
[1751605423224,0.4167,109080.0,109070.0,1.40396288]
[1751605423435,0.4167,109080.0,109070.0,1.18396288]
[1751605423436,0.43916286,109080.0,109070.0,1.18396288]
[1751605423729,0.002,109080.0,109070.0,1.42079473]
[1751605423926,0.102,109080.0,109070.0,1.48289473]
[1751605425223,0.108,109080.0,109070.0,1.48389473]
[1751605425533,0.108,109080.0,109070.0,1.48489473]
[1751605425830,0.113,109080.0,109070.0,1.48489473]
[1751605427229,0.13847957,109100.0,109090.0,0.1832711]
[1751605427424,0.22757957,109100.0,109090.0,2.26933096]
[1751605427624,0.07497957,109100.0,109090.0,2.35030618]
[1751605427818,0.00118,109100.0,109090.0,2.35030618]
[1751605428426,0.00618,109100.0,109090.0,2.35130618]
[1751605428930,0.01218,109100.0,109090.0,2.35230618]
[1751605430229,0.01218,109100.0,109090.0,2.03230618]
[1751605430430,0.04428,109100.0,109090.0,2.03230618]
[1751605430630,0.04428,109100.0,109090.0,1.78272632]
[1751605430830,0.04428,109100.0,109090.0,2.03230618]
[1751605431632,0.04428,109100.0,109090.0,2.01630618]
[1751605431933,0.04428,109100.0,109090.0,2.36630618]
[1751605432137,0.04428,109100.0,109090.0,2.34630618]
[1751605432435,0.04428,109100.0,109090.0,2.39630618]
[1751605432732,0.002,109120.0,109110.0,0.1832375]
[1751605432922,0.002,109120.0,109110.0,2.58103722]
[1751605433124,0.062,109120.0,109110.0,2.61113722]
[1751605433325,0.002,109120.0,109110.0,2.61113722]
[1751605433525,0.3608,109140.0,109130.0,0.1832039]
[1751605433827,0.1004,109140.0,109130.0,1.08278376]
[1751605434126,0.1335,109140.0,109130.0,1.56874376]
[1751605434825,0.1365,109140.0,109130.0,1.3191639]
[1751605435225,0.1365,109140.0,109130.0,1.3201639]
[1751605435630,0.1365,109140.0,109130.0,1.56974376]
[1751605436831,0.1365,109140.0,109130.0,1.93054376]
[1751605437632,0.3196872,109140.0,109130.0,0.4842039]
[1751605437834,0.1365,109140.0,109130.0,0.73378376]
[1751605438033,0.21145636,109140.0,109130.0,0.73378376]
[1751605438628,0.21145636,109140.0,109130.0,1.09458376]
[1751605441538,0.21145636,109140.0,109130.0,0.8450039]
[1751605441739,0.21145636,109140.0,109130.0,1.09458376]
[1751605442835,1.52100356,109140.0,109130.0,0.4842039]
[1751605443036,2.13058342,109140.0,109130.0,0.4842039]
[1751605444240,1.12701636,109140.0,109130.0,0.4842039]
[1751605444439,1.12701636,109140.0,109130.0,1.09458376]
[1751605444642,0.29145636,109140.0,109130.0,1.09458376]
[1751605445348,0.47464346,109140.0,109130.0,1.09458376]
[1751605445647,0.47464346,109140.0,109130.0,0.8450039]
[1751605445846,0.69464346,109140.0,109130.0,1.09458376]
[1751605446142,0.33464346,109140.0,109130.0,1.09458376]
[1751605446541,1.26502332,109140.0,109130.0,0.4842039]
[1751605450150,1.01544346,109140.0,109130.0,0.4842039]
[1751605450350,1.28760639,109140.0,109130.0,0.4842039]
[1751605450551,1.26502332,109140.0,109130.0,0.4842039]
[1751605452448,1.28764211,109140.0,109130.0,0.4842039]
[1751605455548,1.28764211,109140.0,109130.0,0.1842039]
[1751605455945,0.1832209,109120.0,109100.0,0.46998591]
[1751605456149,0.79361756,109110.0,109100.0,0.57823841]
[1751605456350,1.0099377,109110.0,109100.0,0.57823841]
[1751605456646,1.25951756,109110.0,109100.0,0.22905]
[1751605456840,1.28218586,109110.0,109100.0,0.2432399]
[1751605457349,1.29129561,109110.0,109100.0,0.1832399]
[1751605457544,1.29229561,109110.0,109100.0,0.4962399]
[1751605459346,1.04271575,109110.0,109100.0,0.4962399]
[1751605459546,1.29229561,109110.0,109100.0,0.4962399]
[1751605461159,1.29227699,109110.0,109100.0,0.4962399]
[1751605461953,1.77609685,109110.0,109100.0,0.003]
[1751605463351,1.77609685,109110.0,109100.0,0.333]
[1751605463541,1.77609685,109110.0,109100.0,0.003]
[1751605464053,1.52651699,109110.0,109100.0,0.003]
[1751605469250,1.54185685,109110.0,109100.0,0.003]
[1751605469454,2.61621685,109110.0,109100.0,0.003]
[1751605470254,0.1832544,109100.0,109090.0,0.01737522]
[1751605470462,1.19673426,109100.0,109090.0,0.01737522]
[1751605470654,1.21934068,109100.0,109090.0,0.01737522]
[1751605471247,1.19673426,109100.0,109090.0,0.01737522]
[1751605471453,0.1832712,109090.0,109080.0,0.4007369]
[1751605471652,2.06955106,109090.0,109080.0,0.5907369]
[1751605472956,1.72955106,109090.0,109080.0,0.5907369]
[1751605473155,2.03955106,109090.0,109080.0,0.5907369]
[1751605473451,1.72955106,109090.0,109080.0,0.5937369]
[1751605473657,2.10955106,109090.0,109080.0,0.6258369]
[1751605475057,0.88995106,109090.0,109080.0,0.6298369]
[1751605475253,2.03801106,109090.0,109080.0,0.6298369]
[1751605475759,1.7884312,109090.0,109080.0,0.6298369]
[1751605476466,1.7884312,109090.0,109080.0,0.5381939]
[1751605476763,2.07061106,109090.0,109080.0,0.5381939]
[1751605478453,2.04061106,109090.0,109080.0,0.5381939]
[1751605482766,2.06305373,109090.0,109080.0,0.5381939]
[1751605483263,2.06305373,109090.0,109080.0,0.4602742]
[1751605483767,2.06305373,109090.0,109080.0,0.277]
[1751605483980,2.06305373,109090.0,109080.0,0.460288]
[1751605484568,2.06305373,109090.0,109080.0,0.277]
[1751605484771,2.06305373,109090.0,109080.0,0.460288]
[1751605489174,2.09305373,109090.0,109080.0,0.460288]
[1751605490270,0.30211387,109090.0,109080.0,0.460288]
[1751605490475,1.14139387,109090.0,109080.0,0.460288]
[1751605490671,1.50219387,109090.0,109080.0,0.77086786]
[1751605490870,1.85219387,109090.0,109080.0,0.74036786]
[1751605491071,1.75177373,109090.0,109080.0,0.490788]
[1751605491271,2.08177373,109090.0,109080.0,0.490788]
[1751605491774,2.10177373,109090.0,109080.0,0.490788]
[1751605491977,0.20671387,109090.0,109080.0,0.98994772]
[1751605492169,1.04583387,109090.0,109080.0,1.13436786]
[1751605492475,1.0233912,109090.0,109080.0,1.18909197]
[1751605492676,1.04588124,109090.0,109080.0,1.16746786]
[1751605493978,0.20676124,109090.0,109080.0,1.16746786]
[1751605495974,0.02349004,109090.0,109080.0,1.16746786]
[1751605496179,0.001,109090.0,109080.0,1.78177183]
[1751605496480,0.001,109090.0,109080.0,1.80015998]
[1751605497072,0.001,109090.0,109080.0,1.55058012]
[1751605498679,0.001,109090.0,109080.0,1.80015998]
[1751605498875,0.54324356,109110.0,109100.0,0.1832544]
[1751605499077,0.07490706,109110.0,109100.0,0.70283426]
[1751605499276,0.02,109110.0,109100.0,0.85426532]
[1751605499982,0.0524,109110.0,109100.0,0.85426532]
[1751605500171,0.0524,109110.0,109100.0,0.60468546]
[1751605501081,0.0524,109110.0,109100.0,0.85426532]
[1751605501283,0.0524,109110.0,109100.0,0.79933426]
[1751605501479,0.0524,109110.0,109100.0,0.80133426]
[1751605501679,0.0534,109110.0,109100.0,0.80133426]
[1751605501978,0.021,109110.0,109100.0,1.50213426]
[1751605502173,0.021,109110.0,109100.0,1.68544626]
[1751605502382,0.021,109110.0,109100.0,2.52392626]
[1751605502581,0.021,109110.0,109100.0,2.59703852]
[1751605502781,0.001,109110.0,109100.0,2.59703852]
[1751605503387,0.001,109110.0,109100.0,2.52392626]
[1751605504684,0.001,109110.0,109100.0,2.59703852]
[1751605505387,0.001,109110.0,109100.0,2.52392626]
[1751605509283,0.0641,109130.0,109100.0,2.59025172]
[1751605509481,0.3816,109130.0,109120.0,0.79360066]
[1751605509789,0.3816,109130.0,109120.0,1.09360066]
[1751605510084,0.3816,109130.0,109120.0,1.12600066]
[1751605511388,0.3836,109130.0,109120.0,1.12700066]
[1751605512291,0.4141,109130.0,109120.0,1.12700066]
[1751605513787,0.4141,109130.0,109120.0,1.14473598]
[1751605514692,0.4141,109130.0,109120.0,1.12700066]
[1751605515292,0.4141,109130.0,109120.0,1.09460066]
[1751605519099,0.4161,109130.0,109120.0,1.09460066]
[1751605526812,0.4161,109130.0,109120.0,1.93136066]
[1751605528915,0.4161,109130.0,109120.0,1.09460066]
[1751605531316,0.43878585,109130.0,109120.0,1.09460066]
[1751605538318,0.62198985,109130.0,109120.0,1.09460066]
[1751605538520,0.79958585,109130.0,109120.0,0.73380066]
[1751605539019,0.98278985,109130.0,109120.0,0.73380066]
[1751605539919,0.43878585,109130.0,109120.0,1.09460066]
[1751605545328,0.40828585,109130.0,109120.0,1.09460066]
[1751605545628,0.3856,109130.0,109120.0,1.18990066]
[1751605546324,0.3856,109130.0,109120.0,1.50990066]
[1751605549030,0.07495636,109140.0,109120.0,1.71366712]
[1751605549230,0.0934,109150.0,109140.0,0.1831872]
[1751605549432,0.3465704,109150.0,109140.0,0.71997089]
[1751605549731,0.6465704,109150.0,109140.0,0.71997089]
[1751605550522,0.6505704,109150.0,109140.0,0.72097089]
[1751605550718,0.4774,109150.0,109140.0,0.72097089]
[1751605550918,0.6605704,109150.0,109140.0,0.47139103]
[1751605551830,0.73499213,109150.0,109140.0,0.47139103]
[1751605552033,0.73799213,109150.0,109140.0,0.47139103]
[1751605552529,0.52482173,109150.0,109140.0,0.47139103]
[1751605552730,0.70799213,109150.0,109140.0,0.47139103]
[1751605552928,0.72799213,109150.0,109140.0,0.47139103]
[1751605557635,0.35799213,109150.0,109140.0,0.47139103]
[1751605557829,0.66799213,109150.0,109140.0,0.47139103]
[1751605558133,1.27837199,109150.0,109140.0,0.47139103]
[1751605558433,1.27837199,109150.0,109140.0,0.001]
[1751605559132,0.1831872,109140.0,109130.0,0.1831979]
[1751605559432,0.183204,109130.0,109120.0,0.2748123]
[1751605559633,1.23738386,109130.0,109120.0,0.2290077]
[1751605560030,1.23738386,109130.0,109120.0,0.1832051]
[1751605560336,0.1832208,109120.0,109110.0,0.3206469]
[1751605560535,1.9802848,109120.0,109110.0,0.5906469]
[1751605560736,1.97132066,109120.0,109110.0,0.5906469]
[1751605560933,0.9064208,109120.0,109110.0,0.84022676]
[1751605561133,1.43427501,109120.0,109110.0,0.84022676]
[1751605561534,0.59899501,109120.0,109110.0,0.87122676]
[1751605561734,1.43431501,109120.0,109110.0,0.87122676]
[1751605562126,1.81431501,109120.0,109110.0,0.87122676]
[1751605562327,1.84721501,109120.0,109110.0,0.87222676]
[1751605562532,1.84821501,109120.0,109110.0,0.87422676]
[1751605563027,1.84821501,109120.0,109110.0,0.6246469]
[1751605563232,1.8256408,109120.0,109110.0,0.6246469]
[1751605563936,1.0848408,109120.0,109110.0,0.6246469]
[1751605564138,1.4648408,109120.0,109110.0,0.6246469]
[1751605564635,1.48729256,109120.0,109110.0,0.87422676]
[1751605565038,1.10729256,109120.0,109110.0,0.87422676]
[1751605565241,1.45729256,109120.0,109110.0,0.87422676]
[1751605565940,1.81809256,109120.0,109110.0,0.87422676]
[1751605567040,1.81809256,109120.0,109110.0,0.6246469]
[1751605568134,1.81809256,109120.0,109110.0,0.87422676]
[1751605569239,1.81809256,109120.0,109110.0,0.84322676]
[1751605569435,2.06767242,109120.0,109110.0,0.4562376]
[1751605569640,2.04522066,109120.0,109110.0,0.4562376]
[1751605570442,2.06765005,109120.0,109110.0,0.4562376]
[1751605572039,0.05632939,109120.0,109110.0,0.70581746]
[1751605572240,0.86862,109120.0,109110.0,0.70581746]
[1751605572439,0.86862,109120.0,109110.0,1.12811746]
[1751605572640,1.0518408,109120.0,109110.0,0.76731746]
[1751605573547,0.2171208,109120.0,109110.0,0.76731746]
[1751605573741,1.4021008,109120.0,109110.0,0.70581746]
[1751605573944,1.0821008,109120.0,109110.0,0.70581746]
[1751605574244,1.0821008,109120.0,109110.0,0.73641746]
[1751605575139,0.5874208,109120.0,109110.0,0.73641746]
[1751605575345,1.4221408,109120.0,109110.0,0.73641746]
[1751605575643,0.5874208,109120.0,109110.0,0.73641746]
[1751605575846,1.4221008,109120.0,109110.0,0.73641746]
[1751605576045,0.001,109120.0,109110.0,1.69679732]
[1751605576252,0.001,109120.0,109110.0,1.72749732]
[1751605576750,0.001,109120.0,109110.0,1.78239527]
[1751605577749,0.07442173,109150.0,109140.0,0.1831872]
[1751605577943,0.23,109150.0,109140.0,1.09356706]
[1751605578151,0.30410407,109150.0,109140.0,0.79796706]
[1751605578344,0.30410407,109150.0,109140.0,1.15876706]
[1751605578544,0.33560407,109150.0,109140.0,1.15876706]
[1751605578748,0.51877447,109150.0,109140.0,1.15876706]
[1751605578952,0.23,109150.0,109140.0,1.12606706]
[1751605579251,1.4449937,109160.0,109150.0,0.1831704]
[1751605579436,1.8249537,109160.0,109150.0,0.76525026]
[1751605579640,0.9899537,109160.0,109150.0,0.76525026]
[1751605579837,1.8562537,109160.0,109150.0,0.76525026]
[1751605580041,1.8562537,109160.0,109150.0,0.5156704]
[1751605580245,1.8562137,109160.0,109150.0,0.5156704]
[1751605581447,1.8602137,109160.0,109150.0,0.5156704]
[1751605582842,2.10979356,109160.0,109150.0,0.4831704]
[1751605583048,2.11379356,109160.0,109150.0,0.4831704]
[1751605583248,2.18632844,109160.0,109150.0,0.4831704]
[1751605590057,2.20877684,109160.0,109150.0,0.4831704]
[1751605590654,1.95919698,109160.0,109150.0,0.4831704]
[1751605590856,2.20877684,109160.0,109150.0,0.4831704]
[1751605592357,1.95919698,109160.0,109150.0,0.4831704]
[1751605592656,2.20877684,109160.0,109150.0,0.4831704]
[1751605592864,2.18632844,109160.0,109150.0,0.4831704]
[1751605593264,2.20875368,109160.0,109150.0,0.4831704]
[1751605593868,0.1831704,109150.0,109140.0,0.38696226]
[1751605594068,0.9842704,109150.0,109140.0,0.6305559]
[1751605594761,1.23385026,109150.0,109140.0,0.31]
[1751605594958,1.39366126,109150.0,109140.0,0.2531872]
[1751605595159,1.42203216,109150.0,109140.0,0.2531872]
[1751605596766,1.44446168,109150.0,109140.0,0.07]
[1751605597067,0.1831872,109140.0,109130.0,0.33785525]
[1751605597256,2.08182706,109140.0,109130.0,0.56205515]
[1751605598361,2.08282706,109140.0,109130.0,0.56205515]
[1751605598560,2.08382706,109140.0,109130.0,0.56205515]
[1751605599967,1.8342472,109140.0,109130.0,0.56205515]
[1751605600367,1.7842472,109140.0,109130.0,0.56205515]
[1751605601268,1.80669377,109140.0,109130.0,0.56205515]
[1751605601767,2.05683363,109140.0,109130.0,0.56205515]
[1751605601962,2.05679363,109140.0,109130.0,0.56205515]
[1751605603067,1.22231363,109140.0,109130.0,0.56205515]
[1751605603270,2.05675363,109140.0,109130.0,0.56205515]
[1751605610170,2.05675363,109140.0,109130.0,0.51625705]
[1751605610477,0.183204,109130.0,109120.0,0.2748124]
[1751605610775,1.23803043,109130.0,109120.0,0.5948124]
[1751605611772,1.23803043,109130.0,109120.0,0.5958124]
[1751605613680,1.22117057,109130.0,109120.0,0.2442208]
[1751605613880,1.47075043,109130.0,109120.0,0.2442208]
[1751605616482,1.47075043,109130.0,109120.0,0.4642208]
[1751605616688,1.47075043,109130.0,109120.0,0.2442208]
[1751605621386,1.47075043,109130.0,109120.0,0.1842208]
[1751605621592,1.47075043,109130.0,109120.0,0.2342208]
[1751605622790,1.22117057,109130.0,109120.0,0.2342208]
[1751605622992,1.47075043,109130.0,109120.0,0.2342208]
[1751605624094,1.47075043,109130.0,109120.0,0.1842208]
[1751605626399,1.47075043,109130.0,109120.0,0.001]
[1751605626894,1.47075043,109130.0,109120.0,0.184221]
[1751605628499,1.47075043,109130.0,109120.0,0.001]
[1751605629098,1.47075043,109130.0,109120.0,0.184221]
[1751605629395,1.22117057,109130.0,109120.0,0.001]
[1751605629592,1.47075043,109130.0,109120.0,0.184221]
[1751605631196,1.47075043,109130.0,109120.0,0.001]
[1751605631700,1.47075043,109130.0,109120.0,0.184221]
[1751605632192,1.47075043,109130.0,109120.0,0.484221]
[1751605632497,1.47075043,109130.0,109120.0,0.184221]
[1751605632697,1.22117057,109130.0,109120.0,0.184221]
[1751605632996,1.47075043,109130.0,109120.0,0.184221]
[1751605633187,1.47075043,109130.0,109120.0,0.494221]
[1751605635800,1.22117057,109130.0,109120.0,0.494221]
[1751605636000,1.47075043,109130.0,109120.0,0.494221]
[1751605641401,1.44830386,109130.0,109120.0,0.494221]
[1751605641703,1.47072456,109130.0,109120.0,0.494221]
[1751605646005,1.47062811,109130.0,109120.0,0.74370441]
[1751605646899,1.2211447,109130.0,109120.0,0.74370441]
[1751605647198,1.47062811,109130.0,109120.0,0.74370441]
[1751605651208,0.2374247,109130.0,109120.0,1.35398782]
[1751605651403,1.0397047,109130.0,109120.0,1.44818782]
[1751605651909,1.0397047,109130.0,109120.0,1.19864456]
[1751605652510,0.2056247,109130.0,109120.0,1.19864456]
[1751605652704,1.0397047,109130.0,109120.0,1.19864456]
[1751605653212,1.0397047,109130.0,109120.0,1.25337638]
[1751605654406,0.0224207,109130.0,109120.0,1.25337638]
[1751605654709,0.0224207,109130.0,109120.0,1.19864456]
[1751605654909,0.0224207,109130.0,109120.0,1.25337638]
[1751605656119,0.0224207,109130.0,109120.0,1.19864456]
[1751605659805,0.0224207,109130.0,109120.0,1.41192456]
[1751605660011,0.0224207,109130.0,109120.0,1.75192456]
[1751605661412,0.6975678,109150.0,109140.0,0.1831874]
[1751605661618,1.72312492,109150.0,109140.0,0.71261096]
[1751605661915,1.72312492,109150.0,109140.0,0.80891096]
[1751605662106,1.67732822,109150.0,109140.0,0.80891096]
[1751605662306,0.43677472,109150.0,109140.0,0.80891096]
[1751605662616,1.2503376,109150.0,109140.0,0.80891096]
[1751605663713,1.2533376,109150.0,109140.0,0.80891096]
[1751605665815,0.4193776,109150.0,109140.0,0.80891096]
[1751605667215,0.205,109150.0,109140.0,1.84149013]
[1751605667406,0.10663488,109160.0,109150.0,0.1831706]
[1751605667611,0.10663488,109160.0,109150.0,0.73289416]
[1751605667810,0.13693488,109160.0,109150.0,0.73289416]
[1751605668011,0.97081488,109160.0,109150.0,0.73289416]
[1751605668315,0.13693488,109160.0,109150.0,0.73289416]
[1751605668513,0.97477488,109160.0,109150.0,0.73289416]
[1751605669120,1.15792878,109160.0,109150.0,0.73289416]
[1751605669517,1.18902878,109160.0,109150.0,0.73289416]
[1751605670019,1.19202878,109160.0,109150.0,0.73289416]
[1751605670619,1.19202878,109160.0,109150.0,0.70259416]
[1751605670815,1.78145234,109160.0,109150.0,0.4531706]
[1751605671118,1.50202878,109160.0,109150.0,0.4531706]
[1751605671315,1.86282878,109160.0,109150.0,0.70259416]
[1751605671522,1.50202878,109160.0,109150.0,0.70259416]
[1751605671728,1.86282878,109160.0,109150.0,0.70259416]
[1751605672128,1.55282878,109160.0,109150.0,0.70259416]
[1751605672930,1.19202878,109160.0,109150.0,0.70259416]
[1751605673128,1.55282878,109160.0,109150.0,0.70259416]
[1751605673426,1.00883488,109160.0,109150.0,0.70259416]
[1751605673729,1.00883488,109160.0,109150.0,0.73419416]
[1751605674231,1.19198878,109160.0,109150.0,0.73419416]
[1751605674531,1.00883488,109160.0,109150.0,0.73419416]
[1751605675329,0.17503488,109160.0,109150.0,0.73419416]
[1751605678031,0.17503488,109160.0,109150.0,0.4847706]
[1751605678230,0.17503488,109160.0,109150.0,0.73419416]
[1751605679234,0.17503488,109160.0,109150.0,1.09499416]
[1751605680634,0.17503488,109160.0,109150.0,0.73419416]
[1751605681636,0.0393,109160.0,109150.0,1.09499416]
[1751605681827,0.0393,109160.0,109150.0,1.47669416]
[1751605686136,0.9137349,109190.0,109160.0,0.0457867]
[1751605686443,0.9137349,109190.0,109180.0,0.43254406]
[1751605686444,2.2224563,109190.0,109180.0,0.43254406]
[1751605686643,2.47187986,109190.0,109180.0,0.4731205]
[1751605686838,2.2224563,109190.0,109180.0,0.4731205]
[1751605687046,2.1308571,109190.0,109180.0,0.72254406]
[1751605687846,2.1378571,109190.0,109180.0,0.4641205]
[1751605688047,2.38728066,109190.0,109180.0,0.4641205]
[1751605689148,2.1378571,109190.0,109180.0,0.4641205]
[1751605689447,2.2350571,109190.0,109180.0,0.4641205]
[1751605690348,2.1892803,109190.0,109180.0,0.71354406]
[1751605690648,2.1912403,109190.0,109180.0,0.71354406]
[1751605692152,0.9420814,109190.0,109180.0,0.71354406]
[1751605692352,1.5978652,109190.0,109180.0,0.71354406]
[1751605692547,1.57542821,109190.0,109180.0,0.71354406]
[1751605693149,1.59788027,109190.0,109180.0,0.71354406]
[1751605693344,0.51489647,109190.0,109180.0,0.71354406]
[1751605693551,0.69800027,109190.0,109180.0,0.74504406]
[1751605693750,0.69800027,109190.0,109180.0,0.80834406]
[1751605694054,0.69800027,109190.0,109180.0,0.77804406]
[1751605694754,0.73060027,109190.0,109180.0,0.77804406]
[1751605695854,0.73060027,109190.0,109180.0,0.74504406]
[1751605696756,0.72360027,109190.0,109180.0,0.74404406]
[1751605696957,0.72760027,109190.0,109180.0,0.74404406]
[1751605700662,0.72760027,109190.0,109180.0,0.4946205]
[1751605700858,0.97702383,109190.0,109180.0,0.4631205]
[1751605701259,1.33782383,109190.0,109180.0,0.4631205]
[1751605701863,1.3376071,109190.0,109180.0,0.71232733]
[1751605702664,1.08840027,109190.0,109180.0,0.71232733]
[1751605702860,0.9768071,109190.0,109180.0,0.96153416]
[1751605703257,0.52204441,109190.0,109180.0,0.96153416]
[1751605703564,0.70514821,109190.0,109180.0,0.99183416]
[1751605703766,0.70514821,109190.0,109180.0,0.74256215]
[1751605703959,0.52204441,109190.0,109180.0,0.74256215]
[1751605704265,0.70514821,109190.0,109180.0,0.74256215]
[1751605704466,0.52204441,109190.0,109180.0,0.74256215]
[1751605705766,0.52204441,109190.0,109180.0,0.4934205]